fUSD/lending_fUSD_20240119
["ID","MTS","AMOUNT","RATE_DAILY","PERIOD"]
[312160550,1705674642114,-500.0,0.00021917,2]
[312160552,1705674642124,-500.0,0.00021917,2]
[312160554,1705674642134,-500.0,0.00021917,2]
[312160556,1705674642143,-500.0,0.00021917,2]
[312160558,1705674642153,-500.0,0.00021917,2]
[312160560,1705674642164,-500.0,0.00021917,2]
[312160562,1705674642174,-928.59,0.00021917,2]
[312160564,1705674642184,-1265.34,0.00021917,2]
[312160566,1705674642194,-500.0,0.00021917,2]
[312160568,1705674642205,-541.16,0.00021917,2]
[312160571,1705674642217,-500.0,0.00021917,2]
[312160573,1705674642228,-500.0,0.00021917,2]
[312160575,1705674642238,-608.78,0.00021917,2]
[312160577,1705674642249,-514.65,0.00021917,2]
[312160579,1705674642259,-552.53,0.00021917,2]
[312160581,1705674642269,-500.0,0.00021917,2]
[312160583,1705674642280,-500.0,0.00021917,2]
[312160585,1705674642290,-500.0,0.00021917,2]
[312160587,1705674642300,-500.0,0.00021917,2]
[312160589,1705674642310,-847.01,0.00021917,2]
[312160591,1705674642321,-500.0,0.00021917,2]
[312160593,1705674642332,-500.0,0.00021917,2]
[312160595,1705674642342,-157.34403312,0.00021917,2]
[312160597,1705674642353,-580.2,0.00021917,2]
[312160600,1705674642364,-500.0,0.00021917,2]
[312160602,1705674642374,-500.0,0.00021917,2]
[312160604,1705674642384,-535.98,0.00021917,2]
[312160606,1705674642394,-500.0,0.00021917,2]
[312160608,1705674642404,-558.76,0.00021917,2]
[312160610,1705674642414,-500.0,0.00021917,2]
[312160612,1705674642424,-500.0,0.00021917,2]
[312160614,1705674642434,-500.0,0.00021917,2]
[312160616,1705674642444,-886.82,0.00021917,2]
[312160618,1705674642454,-500.0,0.00021917,2]
[312160620,1705674642466,-500.0,0.00021917,2]
[312160622,1705674642477,-869.62,0.00021917,2]
[312160624,1705674642488,-651.62,0.00021917,2]
[312160626,1705674642498,-500.0,0.00021917,2]
[312160629,1705674642508,-500.0,0.00021917,2]
[312160631,1705674642518,-500.0,0.00021917,2]
[312160633,1705674642528,-500.0,0.00021917,2]
[312160635,1705674642538,-766.07,0.00021917,2]
[312160637,1705674642548,-588.85,0.00021917,2]
[312160639,1705674642558,-500.0,0.00021917,2]
[312160641,1705674642568,-500.0,0.00021917,2]
[312160643,1705674642579,-506.13,0.00021917,2]
[312160645,1705674642589,-500.0,0.00021917,2]
[312160647,1705674642599,-500.0,0.00021917,2]
[312160649,1705674642609,-500.0,0.00021917,2]
[312160651,1705674642622,-572.98,0.00021917,2]
[312160653,1705674642633,-517.27,0.00021917,2]
[312160655,1705674642645,-715.18,0.00021917,2]
[312160658,1705674642659,-500.0,0.00021917,2]
[312160660,1705674642669,-500.0,0.00021917,2]
[312160662,1705674642679,-630.94,0.00021917,2]
[312160664,1705674642689,-500.0,0.00021917,2]
[312160666,1705674642700,-500.0,0.00021917,2]
[312160668,1705674642712,-847.73,0.00021917,2]
[312160670,1705674642722,-1237.47,0.00021917,2]
[312160672,1705674642733,-717.44,0.00021917,2]
[312160674,1705674642743,-500.0,0.00021917,2]
[312160676,1705674642753,-500.0,0.00021917,2]
[312160678,1705674642764,-512.98,0.00021917,2]
[312160680,1705674642774,-500.0,0.00021917,2]
[312160682,1705674642785,-500.0,0.00021917,2]
[312160684,1705674642796,-500.0,0.00021917,2]
[312160686,1705674642806,-500.0,0.00021917,2]
[312160689,1705674642817,-500.0,0.00021917,2]
[312160691,1705674642826,-500.0,0.00021917,2]
[312160693,1705674642837,-500.0,0.00021917,2]
[312160695,1705674642847,-500.0,0.00021917,2]
[312160697,1705674642857,-737.83,0.00021917,2]
[312160699,1705674642867,-500.0,0.00021917,2]
[312160701,1705674642877,-500.0,0.00021917,2]
[312160703,1705674642887,-1372.6,0.00021917,2]
[312160705,1705674642898,-523.21804469,0.00021917,2]
[312160707,1705674642909,-500.0,0.00021917,2]
[312160709,1705674642920,-500.0,0.00021917,2]
[312160711,1705674642930,-500.0,0.00021917,2]
[312160713,1705674642940,-500.0,0.00021917,2]
[312160715,1705674642951,-500.0,0.00021917,2]
[312160718,1705674642962,-500.0,0.00021917,2]
[312160720,1705674642973,-356.07,0.00021917,2]
[312160722,1705674642983,-560.24,0.00021917,2]
[312160724,1705674642995,-500.0,0.00021917,2]
[312160726,1705674643006,-500.0,0.00021917,2]
[312160728,1705674643016,-910.01,0.00021917,2]
[312160730,1705674643026,-622.13,0.00021917,2]
[312160732,1705674643036,-923.43,0.00021917,2]
[312160734,1705674643046,-500.0,0.00021917,2]
[312160736,1705674643055,-500.0,0.00021917,2]
[312160738,1705674643065,-1039.82,0.00021917,2]
[312160740,1705674643075,-500.0,0.00021917,2]
[312160742,1705674643085,-725.5,0.00021917,2]
[312160744,1705674643095,-550.84,0.00021917,2]
[312160746,1705674643105,-500.0,0.00021917,2]
[312160748,1705674643115,-500.0,0.00021917,2]
[312160750,1705674643124,-500.0,0.00021917,2]
[312160752,1705674643134,-500.0,0.00021917,2]
[312160754,1705674643144,-774.84,0.00021917,2]
[312160755,1705674643154,-881.4,0.00021917,2]
[312160758,1705674643165,-500.0,0.00021917,2]
[312160761,1705674643176,-500.0,0.00021917,2]
[312160764,1705674643186,-500.0,0.00021917,2]
[312160767,1705674643196,-500.0,0.00021917,2]
[312160771,1705674643207,-586.22,0.00021917,2]
[312160777,1705674643220,-534.43,0.00021917,2]
[312160782,1705674643230,-636.62,0.00021917,2]
[312160786,1705674643241,-713.47,0.00021917,2]
[312160790,1705674643251,-500.0,0.00021917,2]
[312160793,1705674643262,-959.84,0.00021917,2]
[312160796,1705674643272,-500.0,0.00021917,2]
[312160798,1705674643282,-500.0,0.00021917,2]
[312160800,1705674643292,-578.16,0.00021917,2]
[312160803,1705674643302,-500.0,0.00021917,2]
[312160805,1705674643315,-500.0,0.00021917,2]
[312160807,1705674643326,-500.0,0.00021917,2]
[312160809,1705674643337,-500.0,0.00021917,2]
[312160811,1705674643348,-500.0,0.00021917,2]
[312160815,1705674643359,-999.09,0.00021917,2]
[312160819,1705674643369,-500.0,0.00021917,2]
[312160822,1705674643379,-500.0,0.00021917,2]
[312160825,1705674643390,-500.0,0.00021917,2]
[312160828,1705674643401,-682.87,0.00021917,2]
[312160831,1705674643410,-586.30225651,0.00021917,2]
[312160834,1705674643420,-915.17,0.00021917,2]
[312160837,1705674643431,-565.49,0.00021917,2]
[312160840,1705674643441,-500.0,0.00021917,2]
[312160842,1705674643451,-592.67,0.00021917,2]
[312160846,1705674643462,-500.0,0.00021917,2]
[312160849,1705674643473,-500.0,0.00021917,2]
[312160852,1705674643483,-500.0,0.00021917,2]
[312160854,1705674643494,-500.0,0.00021917,2]
[312160856,1705674643504,-500.0,0.00021917,7]
[312160858,1705674643514,-500.0,0.00021917,2]
[312160860,1705674643524,-500.0,0.00021917,2]
[312160862,1705674643534,-500.0,0.00021917,2]
[312160864,1705674643545,-500.0,0.00021917,2]
[312160866,1705674643555,-500.0,0.00021917,2]
[312160868,1705674643566,-500.0,0.00021917,2]
[312160870,1705674643576,-661.07,0.00021917,2]
[312160872,1705674643587,-621.88,0.00021917,2]
[312160874,1705674643598,-500.0,0.00021917,2]
[312160876,1705674643608,-658.77,0.00021917,2]
[312160878,1705674643618,-620.1,0.00021917,2]
[312160880,1705674643633,-814.59,0.00021917,2]
[312160883,1705674643643,-500.0,0.00021917,2]
[312160885,1705674643653,-500.0,0.00021917,2]
[312160886,1705674643663,-1051.71,0.00021917,2]
[312160889,1705674643674,-500.0,0.00021917,2]
[312160891,1705674643684,-500.0,0.00021917,2]
[312160893,1705674643694,-500.0,0.00021917,2]
[312160895,1705674643705,-500.0,0.00021917,2]
[312160897,1705674643716,-507.26,0.00021917,2]
[312160899,1705674643726,-1871.07,0.00021917,2]
[312160901,1705674643736,-1122.09,0.00021917,2]
[312160903,1705674643746,-500.0,0.00021917,2]
[312160904,1705674643756,-500.0,0.00021917,2]
[312160905,1705674643766,-1073.38,0.00021917,2]
[312160906,1705674643775,-500.0,0.00021917,2]
[312160908,1705674643785,-681.46,0.00021917,2]
[312160910,1705674643795,-500.0,0.00021917,2]
[312160912,1705674643806,-609.04,0.00021917,2]
[312160914,1705674643817,-500.0,0.00021917,2]
[312160917,1705674643827,-500.0,0.00021917,2]
[312160919,1705674643838,-500.0,0.00021917,2]
[312160923,1705674643849,-684.05,0.00021917,2]
[312160925,1705674643859,-500.0,0.00021917,2]
[312160927,1705674643869,-536.25,0.00021917,2]
[312160929,1705674643880,-891.26,0.00021917,2]
[312160931,1705674643889,-500.0,0.00021917,2]
[312160933,1705674643901,-500.0,0.00021917,2]
[312160935,1705674643911,-500.0,0.00021917,2]
[312160937,1705674643921,-500.0,0.00021917,2]
[312160939,1705674643931,-921.86,0.00021917,2]
[312160941,1705674643942,-500.0,0.00021917,2]
[312160943,1705674643952,-500.0,0.00021917,2]
[312160945,1705674643962,-548.46,0.00021917,2]
[312160947,1705674643973,-718.86,0.00021917,2]
[312160949,1705674643983,-514.23,0.00021917,2]
[312160951,1705674643994,-500.0,0.00021917,2]
[312160953,1705674644004,-759.76,0.00021917,2]
[312160955,1705674644014,-500.0,0.00021917,2]
[312160957,1705674644025,-500.0,0.00021917,2]
[312160960,1705674644037,-581.17,0.00021917,2]
[312160962,1705674644048,-579.17,0.00021917,2]
[312160964,1705674644058,-500.0,0.00021917,2]
[312160991,1705674644407,-500.0,0.00021917,2]
[312160993,1705674644417,-500.0,0.00021917,2]
[312160994,1705674644427,-500.0,0.00021917,2]
[312160996,1705674644438,-899.48,0.00021917,2]
[312160998,1705674644448,-500.0,0.00021917,2]
[312160999,1705674644459,-520.46,0.00021917,2]
[312161001,1705674644471,-564.45,0.00021917,2]
[312161002,1705674644482,-500.0,0.00021917,2]
[312161003,1705674644493,-1056.49,0.00021917,2]
[312161004,1705674644503,-500.0,0.00021917,2]
[312161005,1705674644524,-539.4,0.00021917,2]
[312161006,1705674644536,-525.71,0.00021917,2]
[312161007,1705674644548,-500.0,0.00021917,2]
[312161008,1705674644559,-500.0,0.00021917,2]
[312161009,1705674644569,-1035.53,0.00021917,2]
[312161010,1705674644580,-950.46,0.00021917,2]
[312161011,1705674644591,-500.0,0.00021917,2]
[312161012,1705674644602,-500.0,0.00021917,2]
[312161013,1705674644613,-1004.01,0.00021917,2]
[312161014,1705674644624,-841.77,0.00021917,2]
[312161015,1705674644637,-511.72,0.00021917,2]
[312161016,1705674644648,-773.82,0.00021917,2]
[312161017,1705674644658,-500.0,0.00021917,2]
[312161018,1705674644669,-500.0,0.00021917,2]
[312161019,1705674644681,-500.0,0.00021917,2]
[312161020,1705674644692,-500.0,0.00021917,2]
[312161021,1705674644703,-505.23180365,0.00021917,2]
[312161022,1705674644715,-263.99318212,0.00021917,2]
[312161023,1705674644725,-831.13,0.00021917,2]
[312161024,1705674644735,-807.35,0.00021917,2]
[312161025,1705674644746,-500.0,0.00021917,2]
[312161026,1705674644757,-500.0,0.00021917,2]
[312161027,1705674644767,-3109.38,0.00021917,2]
[312161028,1705674644778,-896.34,0.00021917,2]
[312161029,1705674644789,-687.96,0.00021917,2]
[312161030,1705674644800,-500.0,0.00021917,2]
[312161031,1705674644810,-1114.15,0.00021917,2]
[312161032,1705674644821,-659.78,0.00021917,2]
[312161033,1705674644831,-500.0,0.00021917,2]
[312161034,1705674644842,-758.37,0.00021917,2]
[312161035,1705674644852,-500.0,0.00021917,2]
[312161036,1705674644862,-500.0,0.00021917,2]
[312161037,1705674644873,-570.22,0.00021917,2]
[312161038,1705674644883,-500.0,0.00021917,2]
[312161039,1705674644893,-500.0,0.00021917,2]
[312161040,1705674644904,-500.0,0.00021917,2]
[312161041,1705674644914,-500.0,0.00021917,2]
[312161042,1705674644924,-755.62,0.00021917,2]
[312161043,1705674644934,-500.0,0.00021917,2]
[312161044,1705674644944,-1088.69,0.00021917,2]
[312161045,1705674644954,-2162.24,0.00021917,2]
[312161046,1705674644966,-500.0,0.00021917,2]
[312161047,1705674644976,-631.97857424,0.00021917,2]
[312161048,1705674644987,-482.1116949,0.00021917,2]
[312161049,1705674644997,-500.0,0.00021917,2]
[312161050,1705674645007,-500.0,0.00021917,2]
[312161051,1705674645017,-1062.76,0.00021917,2]
[312161052,1705674645028,-506.78095706,0.00021917,2]
[312161053,1705674645039,-612.29,0.00021917,2]
[312161054,1705674645050,-2396.2,0.00021917,2]
[312161055,1705674645062,-565.53,0.00021917,2]
[312161056,1705674645073,-500.0,0.00021917,2]
[312161057,1705674645083,-500.0,0.00021917,2]
[312161058,1705674645094,-500.0,0.00021917,2]
[312161059,1705674645105,-668.85,0.00021917,2]
[312161060,1705674645115,-598.83,0.00021917,2]
[312161061,1705674645125,-508.81,0.00021917,2]
[312161062,1705674645135,-500.0,0.00021917,2]
[312161063,1705674645145,-1080.49,0.00021917,2]
[312161064,1705674645154,-2041.51,0.00021917,2]
[312161065,1705674645165,-834.41,0.00021917,2]
[312161066,1705674645175,-500.0,0.00021917,2]
[312161067,1705674645185,-604.66,0.00021917,2]
[312161068,1705674645195,-794.08,0.00021917,2]
[312161069,1705674645205,-500.0,0.00021917,2]
[312161070,1705674645217,-500.0,0.00021917,2]
[312161071,1705674645227,-935.21,0.00021917,2]
[312161072,1705674645237,-500.0,0.00021917,2]
[312161073,1705674645248,-942.04,0.00021917,2]
[312161074,1705674645258,-1596.53,0.00021917,2]
[312161075,1705674645268,-500.0,0.00021917,2]
[312161076,1705674645278,-992.82,0.00021917,2]
[312161077,1705674645288,-500.0,0.00021917,2]
[312161078,1705674645298,-500.0,0.00021917,2]
[312161079,1705674645308,-841.54,0.00021917,2]
[312161080,1705674645317,-500.0,0.00021917,2]
[312161081,1705674645327,-500.0,0.00021917,2]
[312161082,1705674645337,-500.0,0.00021917,2]
[312161083,1705674645347,-1220.64,0.00021917,2]
[312161084,1705674645357,-500.0,0.00021917,2]
[312161085,1705674645367,-907.37,0.00021917,2]
[312161086,1705674645377,-2116.41,0.00021917,2]
[312161087,1705674645387,-500.0,0.00021917,2]
[312161088,1705674645397,-500.0,0.00021917,2]
[312161089,1705674645407,-625.97,0.00021917,2]
[312161090,1705674645418,-3104.05,0.00021917,2]
[312161091,1705674645428,-500.0,0.00021917,2]
[312161092,1705674645438,-1045.61,0.00021917,2]
[312161093,1705674645449,-500.0,0.00021917,2]
[312161094,1705674645460,-500.0,0.00021917,2]
[312161095,1705674645472,-500.0,0.00021917,2]
[312161096,1705674645482,-973.18,0.00021917,2]
[312161097,1705674645492,-500.0,0.00021917,2]
[312161098,1705674645502,-500.0,0.00021917,2]
[312161099,1705674645512,-500.0,0.00021917,2]
[312161100,1705674645523,-1342.7,0.00021917,2]
[312161101,1705674645533,-500.0,0.00021917,2]
[312161102,1705674645544,-1590.89,0.00021917,2]
[312161103,1705674645554,-500.0,0.00021917,2]
[312161104,1705674645565,-925.53,0.00021917,2]
[312161105,1705674645575,-774.58,0.00021917,2]
[312161106,1705674645585,-854.66,0.00021917,2]
[312161107,1705674645596,-834.36,0.00021917,2]
[312161108,1705674645606,-500.0,0.00021917,2]
[312161109,1705674645616,-500.0,0.00021917,2]
[312161110,1705674645627,-213.82,0.00021917,2]
[312161111,1705674645638,-1485.93,0.00021917,2]
[312161112,1705674645649,-500.0,0.00021917,2]
[312161113,1705674645659,-500.0,0.00021917,2]
[312161114,1705674645671,-1774.31,0.00021917,2]
[312161115,1705674645681,-500.0,0.00021917,2]
[312161116,1705674645691,-500.0,0.00021917,2]
[312161117,1705674645701,-500.0,0.00021917,2]
[312161118,1705674645712,-2260.08,0.00021917,2]
[312161119,1705674645724,-1527.06,0.00021917,2]
[312161120,1705674645735,-500.0,0.00021917,2]
[312161121,1705674645745,-584.48,0.00021917,2]
[312161122,1705674645756,-500.0,0.00021917,2]
[312161123,1705674645766,-500.0,0.00021917,2]
[312161124,1705674645776,-804.55,0.00021917,2]
[312161125,1705674645786,-648.29,0.00021917,2]
[312161126,1705674645797,-1390.89,0.00021917,2]
[312161127,1705674645807,-500.0,0.00021917,2]
[312161128,1705674645817,-1877.21,0.00021917,2]
[312161129,1705674645827,-500.0,0.00021917,2]
[312161130,1705674645838,-500.0,0.00021917,5]
[312161131,1705674645848,-3022.81,0.00021917,2]
[312161132,1705674645858,-500.0,0.00021917,2]
[312161133,1705674645868,-900.94,0.00021917,2]
[312161134,1705674645878,-559.75867061,0.00021917,2]
[312161135,1705674645888,-1574.26,0.00021917,2]
[312161136,1705674645899,-500.0,0.00021917,2]
[312161137,1705674645908,-500.0,0.00021917,2]
[312161138,1705674645919,-500.0,0.00021917,2]
[312161139,1705674645929,-6093.79,0.00021917,2]
[312161140,1705674645939,-500.0,0.00021917,2]
[312161141,1705674645949,-500.0,0.00021917,2]
[312161142,1705674645959,-652.23,0.00021917,2]
[312161143,1705674645971,-1118.13,0.00021917,2]
[312161144,1705674645981,-211.76847681,0.00021917,2]
[312161145,1705674645992,-502.55,0.00021917,2]
[312161146,1705674646002,-1115.85,0.00021917,2]
[312161147,1705674646012,-500.0,0.00021917,2]
[312161148,1705674646021,-2563.91,0.00021917,2]
[312161149,1705674646031,-2341.41,0.00021917,2]
[312161150,1705674646041,-500.0,0.00021917,2]
[312161151,1705674646052,-500.0,0.00021917,2]
[312161153,1705674646062,-810.7,0.00021917,2]
[312161155,1705674646072,-500.0,0.00021917,2]
[312161157,1705674646082,-2005.36,0.00021917,2]
[312161159,1705674646092,-602.05,0.00021917,2]
[312161161,1705674646102,-500.0,0.00021917,2]
[312161163,1705674646112,-1103.28,0.00021917,2]
[312161165,1705674646122,-500.0,0.00021917,2]
[312161167,1705674646131,-500.0,0.00021917,2]
[312161168,1705674646141,-707.49,0.00021917,2]
[312161169,1705674646151,-500.0,0.00021917,2]
[312161170,1705674646161,-581.35,0.00021917,2]
[312161172,1705674646171,-500.0,0.00021917,2]
[312161174,1705674646181,-3924.46,0.00021917,2]
[312161176,1705674646191,-500.0,0.00021917,2]
[312161177,1705674646201,-563.69,0.00021917,2]
[312161179,1705674646210,-500.0,0.00021917,2]
[312161181,1705674646223,-8501.89,0.00021917,2]
[312161183,1705674646232,-500.0,0.00021917,2]
[312161184,1705674646242,-527.48,0.00021917,2]
[312161185,1705674646252,-500.0,0.00021917,2]
[312161186,1705674646264,-500.0,0.00021917,2]
[312161187,1705674646274,-500.0,0.00021917,2]
[312161188,1705674646284,-878.75,0.00021917,2]
[312161189,1705674646295,-3091.25,0.00021917,2]
[312161191,1705674646305,-500.0,0.00021917,2]
[312161193,1705674646314,-500.0,0.00021917,2]
[312161195,1705674646326,-500.0,0.00021917,2]
[312161196,1705674646337,-10664.33,0.00021917,2]
[312161197,1705674646347,-1693.3,0.00021917,2]
[312161198,1705674646358,-500.0,0.00021917,2]
[312161199,1705674646369,-506.59,0.00021917,2]
[312161200,1705674646380,-900.55,0.00021917,2]
[312161201,1705674646391,-1585.15,0.00021917,2]
[312161202,1705674646403,-1277.56,0.00021917,2]
[312161203,1705674646414,-1114.75,0.00021917,2]
[312161204,1705674646425,-991.98,0.00021917,2]
[312161205,1705674646436,-854.63,0.00021917,2]
[312161206,1705674646446,-533.58,0.00021917,2]
[312161207,1705674646457,-6410.9,0.00021917,2]
[312161208,1705674646468,-918.55,0.00021917,2]
[312161209,1705674646479,-5442.28,0.00021917,2]
[312161210,1705674646490,-500.0,0.00021917,2]
[312161211,1705674646501,-500.0,0.00021917,2]
[312161212,1705674646511,-1784.06,0.00021917,2]
[312161213,1705674646522,-523.42,0.00021917,2]
[312161214,1705674646533,-875.49,0.00021917,2]
[312161215,1705674646544,-606.49,0.00021917,2]
[312161216,1705674646554,-1009.22,0.00021917,2]
[312161217,1705674646564,-500.0,0.00021917,2]
[312161218,1705674646574,-693.07,0.00021917,2]
[312161219,1705674646586,-554.95,0.00021917,2]
[312161220,1705674646596,-511.36,0.00021917,2]
[312161221,1705674646606,-2140.41,0.00021917,2]
[312161222,1705674646616,-500.0,0.00021917,2]
[312161223,1705674646629,-500.0,0.00021917,2]
[312161224,1705674646643,-3585.07,0.00021917,2]
[312161225,1705674646653,-500.0,0.00021917,2]
[312161226,1705674646663,-642.37,0.00021917,2]
[312161227,1705674646674,-2571.91,0.00021917,2]
[312161228,1705674646684,-713.94,0.00021917,2]
[312161229,1705674646694,-816.86,0.00021917,2]
[312161230,1705674646705,-1520.09,0.00021917,2]
[312161231,1705674646716,-2957.01,0.00021917,2]
[312161232,1705674646727,-3111.27,0.00021917,2]
[312161233,1705674646738,-500.0,0.00021917,2]
[312161234,1705674646749,-1247.06,0.00021917,2]
[312161235,1705674646759,-277.62084848,0.00021917,2]
[312161236,1705674646770,-500.0,0.00021917,2]
[312161237,1705674646780,-2470.98,0.00021917,2]
[312161238,1705674646791,-877.17,0.00021917,2]
[312161239,1705674646801,-16108.31,0.00021917,2]
[312161240,1705674646811,-1420.38,0.00021917,2]
[312161241,1705674646822,-500.0,0.00021917,2]
[312161242,1705674646833,-500.0,0.00021917,2]
[312161243,1705674646843,-5889.58,0.00021917,2]
[312161244,1705674646853,-500.0,0.00021917,2]
[312161245,1705674646863,-1031.15,0.00021917,2]
[312161246,1705674646873,-500.0,0.00021917,2]
[312161247,1705674646883,-24836.08,0.00021917,2]
[312161248,1705674646893,-500.0,0.00021917,2]
[312161249,1705674646904,-525.39,0.00021917,2]
[312161250,1705674646915,-1007.94,0.00021917,2]
[312161251,1705674647031,-621.8,0.00021917,2]
[312161252,1705674647040,-500.0,0.00021917,2]
[312161253,1705674647050,-500.0,0.00021917,2]
[312161254,1705674647059,-12531.28,0.00021917,2]
[312161255,1705674647068,-500.0,0.00021917,2]
[312161256,1705674647077,-500.0,0.00021917,2]
[312161257,1705674647086,-500.0,0.00021917,2]
[312161258,1705674647095,-1705.83,0.00021917,2]
[312161259,1705674647105,-557.18,0.00021917,2]
[312161260,1705674647115,-500.0,0.00021917,2]
[312161261,1705674647125,-652.5,0.00021917,2]
[312161262,1705674647134,-1703.36,0.00021917,2]
[312161263,1705674647145,-500.0,0.00021917,2]
[312161264,1705674647155,-1441.36,0.00021917,2]
[312161265,1705674647166,-2408.12,0.00021917,2]
[312161266,1705674647176,-727.24,0.00021917,2]
[312161267,1705674647186,-500.0,0.00021917,2]
[312161268,1705674647197,-1152.24,0.00021917,2]
[312161269,1705674647207,-1113.26,0.00021917,2]
[312161270,1705674647217,-1962.06,0.00021917,2]
[312161271,1705674647228,-500.0,0.00021917,2]
[312161272,1705674647238,-573.79,0.00021917,2]
[312161273,1705674647248,-11423.78,0.00021917,2]
[312161274,1705674647258,-522.52,0.00021917,2]
[312161275,1705674647268,-4066.04,0.00021917,2]
[312161276,1705674647278,-648.21,0.00021917,2]
[312161277,1705674647288,-500.0,0.00021917,2]
[312161278,1705674647298,-847.61,0.00021917,2]
[312161279,1705674647307,-2220.98,0.00021917,2]
[312161280,1705674647317,-942.58,0.00021917,2]
[312161281,1705674647328,-6566.67,0.00021917,2]
[312161282,1705674647337,-934.08,0.00021917,2]
[312161283,1705674647347,-814.47,0.00021917,2]
[312161284,1705674647357,-800.9,0.00021917,2]
[312161285,1705674647367,-1493.53,0.00021917,2]
[312161286,1705674647377,-823.98,0.00021917,2]
[312161287,1705674647387,-500.0,0.00021917,2]
[312161288,1705674647396,-500.0,0.00021917,2]
[312161289,1705674647405,-500.0,0.00021917,2]
[312161290,1705674647415,-509.76,0.00021917,2]
[312161291,1705674647425,-1278.96,0.00021917,2]
[312161292,1705674647435,-500.0,0.00021917,2]
[312161293,1705674647445,-500.0,0.00021917,2]
[312161294,1705674647455,-956.94,0.00021917,2]
[312161295,1705674647466,-3770.64,0.00021917,2]
[312161296,1705674647475,-1348.79,0.00021917,2]
[312161297,1705674647486,-2516.93,0.00021917,2]
[312161298,1705674647496,-1356.35,0.00021917,2]
[312161299,1705674647507,-500.0,0.00021917,2]
[312161300,1705674647516,-773.29,0.00021917,2]
[312161301,1705674647527,-608.82,0.00021917,2]
[312161302,1705674647536,-500.0,0.00021917,2]
[312161303,1705674647546,-2842.24,0.00021917,2]
[312161304,1705674647556,-500.0,0.00021917,2]
[312161305,1705674647565,-602.48,0.00021917,2]
[312161306,1705674647575,-500.0,0.00021917,2]
[312161307,1705674647585,-532.27376122,0.00021917,2]
[312161308,1705674647596,-500.0,0.00021917,2]
[312161309,1705674647606,-2750.19,0.00021917,2]
[312161310,1705674647616,-1084.04,0.00021917,2]
[312161311,1705674647627,-624.79,0.00021917,2]
[312161312,1705674647638,-863.67,0.00021917,2]
[312161313,1705674647648,-1392.15,0.00021917,2]
[312161314,1705674647658,-977.84,0.00021917,2]
[312161315,1705674647669,-511.75,0.00021917,2]
[312161316,1705674647678,-816.57,0.00021917,2]
[312161317,1705674647688,-564.75,0.00021917,2]
[312161318,1705674647697,-1716.1,0.00021917,2]
[312161319,1705674647707,-1306.13,0.00021917,2]
[312161320,1705674647718,-1125.65,0.00021917,2]
[312161321,1705674647727,-1422.11,0.00021917,2]
[312161322,1705674647737,-1831.27,0.00021917,2]
[312161323,1705674647746,-500.0,0.00021917,2]
[312161324,1705674647757,-894.49,0.00021917,2]